fUST/lending_fUST_20240808
["ID","MTS","AMOUNT","RATE_DAILY","PERIOD"]
[334407157,1723046455748,1167.468,0.00014009,2]
[334407216,1723046621451,500.0,0.00027,120]
[334407222,1723046649261,393.78465134,0.00027,120]
[334407223,1723046668067,500.0,0.00027,120]
[334407236,1723046692710,499.999,0.00027,120]
[334407249,1723046945110,-188.425648,0.00014247,2]
[334407250,1723046945132,-266.46203032,0.00014691,2]
[334407285,1723047032409,-823.0,0.00014691,2]
[334407286,1723047032472,-626.22191852,0.00014691,2]
[334407287,1723047032484,-156.63892832,0.00019177,2]
[334407288,1723047032494,-300.0,0.0001945,2]
[334407289,1723047032504,-300.0,0.0001945,2]
[334407290,1723047032513,-15428.83915316,0.00019451,2]
[334407635,1723047043444,-254.82137191,0.00021805,2]
[334407638,1723047043454,-632.87993307,0.00021916,2]
[334407640,1723047043463,-500.0,0.0002241,2]
[334407642,1723047043473,-452.02661759,0.0002241,2]
[334407645,1723047043484,-500.0,0.0002241,2]
[334407647,1723047043494,-569.63946703,0.0002241,2]
[334407649,1723047043503,-174.40438522,0.0002241,2]
[334407651,1723047043514,-2573.0143329,0.00022411,2]
[334407835,1723047046668,-255.27832773,0.00022411,2]
[334408129,1723048232998,-247.9740293,0.00014247,2]
[334408130,1723048233008,-114.53555204,0.00014247,2]
[334408190,1723048240787,-73.89009596,0.00014247,2]
[334408191,1723048240797,-3651.58858061,0.00019177,2]
[334408192,1723048240807,-156.40122441,0.0002,2]
[334408193,1723048240817,-166.398427,0.00020146,2]
[334408195,1723048240826,-300.0,0.00020887,2]
[334408197,1723048240836,-24452.65981058,0.00020888,2]
[334408232,1723048243852,-447.34018942,0.00020888,2]
[334408234,1723048243862,-269.16069845,0.00021082,2]
[334408236,1723048243872,-4939.52067269,0.00021084,2]
[334408238,1723048243882,-151.0,0.00021182,2]
[334408240,1723048243892,-3192.97843944,0.00021198,2]
[334408242,1723048243931,-9.28466374,0.00021198,2]
[334408286,1723048832644,10000.0,0.00014009,2]
[334408287,1723048843385,10000.0,0.00014009,2]
[334408288,1723048850475,10000.0,0.00014009,2]
[334408289,1723048884420,10000.0,0.00014009,2]
[334408290,1723048901159,10000.0,0.00014009,2]
[334408291,1723048909128,10000.0,0.00014009,2]
[334408292,1723048931399,685.61,0.00025,60]
[334408375,1723049445203,-157.303745,0.00014247,2]
[334408376,1723049445212,-4996.68588933,0.00018778,2]
[334408377,1723049445221,-1163.20555821,0.00018999,2]
[334408378,1723049445237,-4996.68588933,0.00019044,2]
[334408379,1723049445246,-2299.30990104,0.00019425,2]
[334408712,1723051636409,648.1,0.00010959,2]
[334408717,1723051686943,150.0,0.00011242,2]
[334408719,1723051687538,5316.83398038,0.00011406,2]
[334408722,1723051702764,869.54525531,0.00010959,2]
[334408751,1723051750159,-160.105122,0.00014247,2]
[334408752,1723051750182,-110.12663818,0.00014247,2]
[334408753,1723051764201,869.54525531,0.00013283,2]
[334408841,1723051832509,-71.12815282,0.00014247,2]
[334408842,1723051832519,-150.0,0.00014673,2]
[334408843,1723051832528,-58.62184718,0.00014732,2]
[334408885,1723051838436,-4501.48771013,0.00014732,2]
[334408886,1723051838448,-869.54525531,0.000161,2]
[334408887,1723051838460,-329.70935598,0.00016398,2]
[334408888,1723051838473,-517.78756634,0.00016398,2]
[334408889,1723051838484,-630.13108188,0.00016398,2]
[334408890,1723051838494,-281.15043457,0.00016398,2]
[334408891,1723051838505,-24900.0,0.00016399,2]
[334408892,1723051838517,-164.108207,0.00016501,2]
[334408893,1723051838529,-164.108207,0.00016673,2]
[334408894,1723051838541,-164.108207,0.00016845,2]
[334408895,1723051838553,-164.108207,0.00017017,2]
[334408896,1723051838568,-164.108207,0.00017189,2]
[334408897,1723051838582,-164.108207,0.00017361,2]
[334408898,1723051838593,-513.68767147,0.00017763,2]
[334408899,1723051838604,-2882.95841304,0.00017783,2]
[334408900,1723051838614,-151.0,0.00017853,2]
[334408901,1723051838626,-151.0,0.00017853,2]
[334408902,1723051838636,-151.0,0.00017853,2]
[334408903,1723051838652,-151.0,0.00017853,2]
[334408904,1723051838663,-151.0,0.00017853,2]
[334408905,1723051838674,-388.599222,0.00017853,2]
[334408906,1723051838684,-388.599222,0.00017853,2]
[334408907,1723051838695,-362.807979,0.00017853,2]
[334408908,1723051838705,-362.807979,0.00017853,2]
[334408909,1723051838715,-151.0,0.00017853,2]
[334408910,1723051838726,-17106.1328369,0.00017853,2]
[334408911,1723051838736,-211.68828353,0.00017862,2]
[334408912,1723051838747,-500.0,0.00017862,2]
[334408913,1723051838758,-357.98326733,0.00017862,2]
[334408914,1723051838768,-500.0,0.00017862,2]
[334408915,1723051838779,-500.0,0.00017862,2]
[334408916,1723051838789,-500.0,0.00017862,2]
[334408917,1723051838800,-500.0,0.00017862,2]
[334408918,1723051838810,-558.37775473,0.00017862,2]
[334408919,1723051838821,-500.0,0.00017862,2]
[334408920,1723051838831,-500.0,0.00017862,2]
[334408921,1723051838841,-151.0,0.00017862,2]
[334408922,1723051838851,-151.0,0.00017862,2]
[334408923,1723051838862,-151.0,0.00017862,2]
[334408924,1723051838872,-151.0,0.00017862,2]
[334408925,1723051838883,-151.0,0.00017862,2]
[334408926,1723051838897,-388.599222,0.00017862,2]
[334408927,1723051838907,-388.599222,0.00017862,2]
[334408928,1723051838918,-362.807979,0.00017862,2]
[334408929,1723051838928,-362.807979,0.00017862,2]
[334408930,1723051838939,-151.0,0.00017863,2]
[334408931,1723051838949,-151.0,0.00017863,2]
[334408932,1723051838959,-151.0,0.00017863,2]
[334408933,1723051838969,-151.0,0.00017863,2]
[334408934,1723051838980,-151.0,0.00017863,2]
[334408935,1723051838990,-151.0,0.00017863,2]
[334408936,1723051839000,-151.0,0.00017863,2]
[334408937,1723051839010,-151.0,0.00017863,2]
[334408938,1723051839020,-151.0,0.00017863,2]
[334408939,1723051839031,-151.0,0.00017863,2]
[334408940,1723051839041,-283.483564,0.00017863,2]
[334408941,1723051839051,-151.0,0.00017863,2]
[334408942,1723051839061,-151.0,0.00017863,2]
[334408943,1723051839072,-151.0,0.00017863,2]
[334408944,1723051839083,-151.0,0.00017863,2]
[334408945,1723051839094,-151.0,0.00017863,2]
[334408946,1723051839105,-151.0,0.00017863,2]
[334408947,1723051839116,-151.0,0.00017863,2]
[334408948,1723051839126,-151.0,0.00017863,2]
[334408949,1723051839139,-151.0,0.00017863,2]
[334408950,1723051839154,-151.0,0.00017863,2]
[334408951,1723051839165,-151.0,0.00017863,2]
[334408952,1723051839176,-151.0,0.00017863,2]
[334408953,1723051839187,-151.0,0.00017863,2]
[334408954,1723051839198,-151.0,0.00017863,2]
[334408955,1723051839208,-151.0,0.00017863,2]
[334408956,1723051839219,-151.0,0.00017863,2]
[334408957,1723051839230,-151.0,0.00017863,2]
[334408958,1723051839241,-171.435741,0.00017863,2]
[334408959,1723051839253,-494.080465,0.00017863,2]
[334408960,1723051839264,-494.080465,0.00017863,2]
[334408961,1723051839275,-494.080465,0.00017863,2]
[334408962,1723051839288,-494.080465,0.00017863,2]
[334408963,1723051839299,-284.8637,0.00017863,2]
[334408964,1723051839311,-494.080465,0.00017863,2]
[334408965,1723051839324,-284.8637,0.00017863,2]
[334408966,1723051839336,-284.8637,0.00017863,2]
[334408967,1723051839348,-284.8637,0.00017863,2]
[334408968,1723051839360,-284.8637,0.00017863,2]
[334408969,1723051839371,-494.080465,0.00017863,2]
[334408970,1723051839385,-284.8637,0.00017863,2]
[334408971,1723051839400,-284.8637,0.00017863,2]
[334408972,1723051839410,-494.080465,0.00017863,2]
[334408973,1723051839421,-284.8637,0.00017863,2]
[334408974,1723051839431,-494.080465,0.00017863,2]
[334408975,1723051839443,-284.8637,0.00017863,2]
[334408976,1723051839454,-494.080465,0.00017863,2]
[334408977,1723051839464,-284.8637,0.00017863,2]
[334408978,1723051839475,-494.080465,0.00017863,2]
[334408979,1723051839486,-284.8637,0.00017863,2]
[334408980,1723051839496,-494.080465,0.00017863,2]
[334408981,1723051839507,-284.8637,0.00017863,2]
[334408982,1723051839518,-494.080465,0.00017863,2]
[334408983,1723051839529,-284.8637,0.00017863,2]
[334408984,1723051839540,-494.080465,0.00017863,2]
[334408985,1723051839551,-284.8637,0.00017863,2]
[334408986,1723051839561,-494.080465,0.00017863,2]
[334408987,1723051839573,-494.080465,0.00017863,2]
[334408988,1723051839585,-284.8637,0.00017863,2]
[334408989,1723051839595,-494.080465,0.00017863,2]
[334408990,1723051839605,-284.8637,0.00017863,2]
[334408991,1723051839616,-494.080465,0.00017863,2]
[334408992,1723051839627,-284.8637,0.00017863,2]
[334408993,1723051839638,-494.080465,0.00017863,2]
[334408994,1723051839653,-284.8637,0.00017863,2]
[334408995,1723051839665,-494.080465,0.00017863,2]
[334408996,1723051839675,-284.8637,0.00017863,2]
[334408997,1723051839686,-494.080459,0.00017863,2]
[334408998,1723051839697,-284.863694,0.00017863,2]
[334408999,1723051839709,-151.0,0.00017863,2]
[334409000,1723051839721,-151.0,0.00017863,2]
[334409001,1723051839733,-151.0,0.00017863,2]
[334409002,1723051839744,-151.0,0.00017863,2]
[334409003,1723051839755,-151.0,0.00017863,2]
[334409005,1723051839766,-151.0,0.00017863,2]
[334409006,1723051839776,-151.0,0.00017863,2]
[334409007,1723051839787,-151.0,0.00017863,2]
[334409008,1723051839798,-151.0,0.00017863,2]
[334409009,1723051839808,-151.0,0.00017863,2]
[334409010,1723051839819,-151.0,0.00017863,2]
[334409011,1723051839829,-151.0,0.00017863,2]
[334409012,1723051839839,-151.0,0.00017863,2]
[334409013,1723051839849,-151.0,0.00017863,2]
[334409014,1723051839859,-151.0,0.00017863,2]
[334409015,1723051839868,-151.0,0.00017863,2]
[334409016,1723051839879,-151.0,0.00017863,2]
[334409017,1723051839889,-151.0,0.00017863,2]
[334409018,1723051839905,-151.0,0.00017863,2]
[334409019,1723051839916,-151.0,0.00017863,2]
[334409020,1723051839926,-189.572678,0.00017863,2]
[334409021,1723051839936,-151.0,0.00017863,2]
[334409022,1723051839948,-151.0,0.00017863,2]
[334409023,1723051839959,-151.0,0.00017863,2]
[334409024,1723051839970,-151.0,0.00017863,2]
[334409025,1723051839980,-151.0,0.00017863,2]
[334409026,1723051839990,-151.0,0.00017863,2]
[334409027,1723051840000,-151.0,0.00017863,2]
[334409028,1723051840010,-151.0,0.00017863,2]
[334409029,1723051840021,-151.0,0.00017863,2]
[334409030,1723051840031,-151.0,0.00017863,2]
[334409031,1723051840042,-151.0,0.00017863,2]
[334409032,1723051840053,-151.0,0.00017863,2]
[334409033,1723051840064,-245.510246,0.00017863,2]
[334409034,1723051840075,-154.693268,0.00017863,2]
[334409035,1723051840085,-151.0,0.00017863,2]
[334409036,1723051840095,-151.0,0.00017863,2]
[334409037,1723051840106,-329.144863,0.00017863,2]
[334409038,1723051840116,-329.144863,0.00017863,2]
[334409039,1723051840127,-329.144863,0.00017863,2]
[334409040,1723051840137,-329.144863,0.00017863,2]
[334409041,1723051840151,-329.144863,0.00017863,2]
[334409042,1723051840161,-329.144863,0.00017863,2]
[334409043,1723051840172,-329.144863,0.00017863,2]
[334409044,1723051840183,-329.144863,0.00017863,2]
[334409045,1723051840194,-329.144863,0.00017863,2]
[334409046,1723051840204,-329.144863,0.00017863,2]
[334409047,1723051840215,-329.144863,0.00017863,2]
[334409048,1723051840228,-329.144863,0.00017863,2]
[334409049,1723051840239,-329.144863,0.00017863,2]
[334409050,1723051840249,-329.144863,0.00017863,2]
[334409051,1723051840260,-329.144863,0.00017863,2]
[334409052,1723051840270,-329.144863,0.00017863,2]
[334409053,1723051840280,-329.144863,0.00017863,2]
[334409054,1723051840290,-329.144863,0.00017863,2]
[334409055,1723051840301,-329.144863,0.00017863,2]
[334409056,1723051840602,-329.144867,0.00017863,2]
[334409057,1723051840619,-151.0,0.00017863,2]
[334409058,1723051840629,-151.0,0.00017863,2]
[334409059,1723051840642,-151.0,0.00017863,2]
[334409060,1723051840660,-151.0,0.00017863,2]
[334409061,1723051840670,-151.0,0.00017863,2]
[334409062,1723051840679,-151.0,0.00017863,2]
[334409063,1723051840689,-151.0,0.00017863,2]
[334409064,1723051840698,-151.0,0.00017863,2]
[334409065,1723051840707,-151.0,0.00017863,2]
[334409066,1723051840717,-151.0,0.00017863,2]
[334409067,1723051840727,-151.0,0.00017863,2]
[334409068,1723051840736,-168.138564,0.00017863,2]
[334409069,1723051840746,-151.0,0.00017863,2]
[334409070,1723051840755,-151.0,0.00017863,2]
[334409071,1723051840765,-151.0,0.00017863,2]
[334409072,1723051840774,-151.0,0.00017863,2]
[334409073,1723051840783,-151.0,0.00017863,2]
[334409074,1723051840793,-151.0,0.00017863,2]
[334409075,1723051840802,-151.0,0.00017863,2]
[334409076,1723051840812,-151.0,0.00017863,2]
[334409077,1723051840821,-151.0,0.00017863,2]
[334409078,1723051840830,-151.0,0.00017863,2]
[334409079,1723051840839,-151.0,0.00017863,2]
[334409080,1723051840848,-151.0,0.00017863,2]
[334409081,1723051840858,-260.043744,0.00017863,2]
[334409082,1723051840868,-387.591559,0.00017863,2]
[334409083,1723051840879,-387.591559,0.00017863,2]
[334409084,1723051840889,-387.591559,0.00017863,2]
[334409085,1723051840901,-387.591559,0.00017863,2]
[334409086,1723051840911,-387.591559,0.00017863,2]
[334409087,1723051840920,-387.591559,0.00017863,2]
[334409088,1723051840930,-387.591559,0.00017863,2]
[334409089,1723051840939,-387.591559,0.00017863,2]
[334409090,1723051840949,-387.591559,0.00017863,2]
[334409091,1723051840958,-387.591559,0.00017863,2]
[334409092,1723051840968,-387.591559,0.00017863,2]
[334409093,1723051840978,-387.591559,0.00017863,2]
[334409094,1723051840988,-387.591559,0.00017863,2]
[334409095,1723051840997,-387.591559,0.00017863,2]
[334409096,1723051841007,-387.591559,0.00017863,2]
[334409097,1723051841016,-387.591559,0.00017863,2]
[334409098,1723051841026,-387.591559,0.00017863,2]
[334409099,1723051841036,-387.591559,0.00017863,2]
[334409100,1723051841046,-387.591559,0.00017863,2]
[334409101,1723051841055,-151.0,0.00017863,2]
[334409102,1723051841065,-387.591557,0.00017863,2]
[334409103,1723051841075,-151.0,0.00017863,2]
[334409104,1723051841084,-151.0,0.00017863,2]
[334409105,1723051841093,-151.0,0.00017863,2]
[334409106,1723051841103,-151.0,0.00017863,2]
[334409107,1723051841112,-151.0,0.00017863,2]
[334409108,1723051841122,-151.0,0.00017863,2]
[334409109,1723051841132,-151.0,0.00017863,2]
[334409110,1723051841142,-182.141029,0.00017863,2]
[334409111,1723051841156,-151.0,0.00017863,2]
[334409112,1723051841165,-151.0,0.00017863,2]
[334409113,1723051841174,-151.0,0.00017863,2]
[334409114,1723051841184,-151.0,0.00017863,2]
[334409115,1723051841193,-167.536757,0.00017863,2]
[334409116,1723051841202,-151.0,0.00017863,2]
[334409117,1723051841212,-154.535059,0.00017863,2]
[334409118,1723051841221,-452.93681,0.00017863,2]
[334409119,1723051841232,-452.93681,0.00017863,2]
[334409120,1723051841241,-452.93681,0.00017863,2]
[334409121,1723051841251,-452.93681,0.00017863,2]
[334409122,1723051841260,-452.93681,0.00017863,2]
[334409123,1723051841270,-452.93681,0.00017863,2]
[334409124,1723051841279,-452.93681,0.00017863,2]
[334409125,1723051841293,-452.93681,0.00017863,2]
[334409126,1723051841303,-452.93681,0.00017863,2]
[334409127,1723051841315,-452.93681,0.00017863,2]
[334409128,1723051841326,-452.93681,0.00017863,2]
[334409129,1723051841335,-452.93681,0.00017863,2]
[334409130,1723051841344,-452.93681,0.00017863,2]
[334409131,1723051841353,-452.93681,0.00017863,2]
[334409132,1723051841363,-452.93681,0.00017863,2]
[334409133,1723051841372,-452.93681,0.00017863,2]
[334409134,1723051841382,-452.93681,0.00017863,2]
[334409135,1723051841393,-452.93681,0.00017863,2]
[334409136,1723051841404,-452.93681,0.00017863,2]
[334409137,1723051841413,-452.936816,0.00017863,2]
[334409138,1723051841423,-151.0,0.00017863,2]
[334409139,1723051841432,-297.94707,0.00017863,2]
[334409140,1723051841442,-151.0,0.00017863,2]
[334409141,1723051841451,-152.314251,0.00017863,2]
[334409142,1723051841460,-378.001874,0.00017863,2]
[334409143,1723051841470,-378.001874,0.00017863,2]
[334409144,1723051841480,-378.001874,0.00017863,2]
[334409145,1723051841489,-378.001874,0.00017863,2]
[334409146,1723051841498,-378.001874,0.00017863,2]
[334409147,1723051841507,-378.001874,0.00017863,2]
[334409148,1723051841516,-378.001874,0.00017863,2]
[334409149,1723051841526,-378.001874,0.00017863,2]
[334409150,1723051841536,-378.001874,0.00017863,2]
[334409151,1723051841545,-378.001874,0.00017863,2]
[334409152,1723051841554,-378.001874,0.00017863,2]
[334409153,1723051841564,-378.001874,0.00017863,2]
[334409154,1723051841575,-378.001874,0.00017863,2]
[334409155,1723051841584,-378.001874,0.00017863,2]
[334409156,1723051841593,-378.001874,0.00017863,2]
[334409157,1723051841602,-378.001874,0.00017863,2]
[334409158,1723051841611,-378.001874,0.00017863,2]
[334409159,1723051841621,-378.001874,0.00017863,2]
[334409160,1723051841631,-378.001874,0.00017863,2]
[334409161,1723051841640,-378.00188,0.00017863,2]
[334409162,1723051841654,-151.0,0.00017863,2]
[334409163,1723051841663,-151.0,0.00017863,2]
[334409164,1723051841672,-151.0,0.00017863,2]
[334409165,1723051841681,-151.0,0.00017863,2]
[334409166,1723051841690,-151.0,0.00017863,2]
[334409167,1723051841699,-151.0,0.00017863,2]
[334409168,1723051841709,-151.0,0.00017863,2]
[334409169,1723051841718,-151.0,0.00017863,2]
[334409170,1723051841728,-151.0,0.00017863,2]
[334409171,1723051841738,-151.0,0.00017863,2]
[334409172,1723051841747,-151.0,0.00017863,2]
[334409173,1723051841757,-151.0,0.00017863,2]
[334409174,1723051841766,-151.0,0.00017863,2]
[334409175,1723051841775,-151.0,0.00017863,2]
[334409176,1723051841784,-151.0,0.00017863,2]
[334409177,1723051841794,-151.0,0.00017863,2]
[334409178,1723051841803,-151.0,0.00017863,2]
[334409179,1723051841812,-151.0,0.00017863,2]
[334409180,1723051841821,-204.376492,0.00017863,2]
[334409181,1723051841830,-151.0,0.00017863,2]
[334409182,1723051841840,-206.889652,0.00017863,2]
[334409183,1723051841849,-151.0,0.00017863,2]
[334409184,1723051841858,-151.0,0.00017863,2]
[334409185,1723051841867,-280.416944,0.00017863,2]
[334409186,1723051841876,-388.599222,0.00017863,2]
[334409187,1723051841886,-388.599222,0.00017863,2]
[334409188,1723051841897,-388.599222,0.00017863,2]
[334409189,1723051841906,-388.599222,0.00017863,2]
[334409190,1723051841915,-388.599222,0.00017863,2]
[334409191,1723051841924,-388.599222,0.00017863,2]
[334409192,1723051841934,-388.599222,0.00017863,2]
[334409193,1723051841943,-388.599222,0.00017863,2]
[334409194,1723051841952,-388.599222,0.00017863,2]
[334409195,1723051841965,-388.599222,0.00017863,2]
[334409196,1723051841974,-388.599222,0.00017863,2]
[334409197,1723051841983,-388.599222,0.00017863,2]
[334409198,1723051841993,-388.599222,0.00017863,2]
[334409199,1723051842003,-388.599222,0.00017863,2]
[334409200,1723051842013,-388.599222,0.00017863,2]
[334409201,1723051842024,-388.599219,0.00017863,2]
[334409202,1723051842034,-362.807979,0.00017863,2]
[334409203,1723051842044,-362.807979,0.00017863,2]
[334409204,1723051842054,-362.807979,0.00017863,2]
[334409205,1723051842064,-362.807979,0.00017863,2]
[334409206,1723051842073,-362.807979,0.00017863,2]
[334409207,1723051842083,-362.807979,0.00017863,2]
[334409208,1723051842094,-362.807979,0.00017863,2]
[334409209,1723051842104,-362.807979,0.00017863,2]
[334409210,1723051842113,-362.807979,0.00017863,2]
[334409211,1723051842122,-362.807979,0.00017863,2]
[334409212,1723051842132,-362.807979,0.00017863,2]
[334409213,1723051842143,-362.807979,0.00017863,2]
[334409214,1723051842155,-362.807979,0.00017863,2]
[334409215,1723051842164,-362.807979,0.00017863,2]
[334409216,1723051842173,-362.807979,0.00017863,2]
[334409217,1723051842182,-362.807971,0.00017863,2]
[334409218,1723051842192,-151.0,0.00017873,2]
[334409220,1723051842202,-151.0,0.00017873,2]
[334409221,1723051842212,-151.0,0.00017873,2]
[334409223,1723051842221,-151.0,0.00017873,2]
[334409224,1723051842230,-151.0,0.00017873,2]
[334409225,1723051842239,-151.0,0.00017883,2]
[334409226,1723051842248,-151.0,0.00017883,2]
[334409227,1723051842257,-151.0,0.00017883,2]
[334409229,1723051842267,-151.0,0.00017883,2]
[334409231,1723051842276,-151.0,0.00017883,2]
[334409232,1723051842285,-151.0,0.00017883,2]
[334409233,1723051842295,-212.8168,0.00017883,2]
[334409234,1723051842304,-151.0,0.00017883,2]
[334409235,1723051842313,-151.0,0.00017883,2]
[334409236,1723051842322,-151.0,0.00017883,2]
[334409237,1723051842331,-151.0,0.00017883,2]
[334409238,1723051842341,-151.0,0.00017883,2]
[334409239,1723051842350,-151.0,0.00017883,2]
[334409240,1723051842359,-276.611062,0.00017883,2]
[334409241,1723051842368,-227.056894,0.00017883,2]
[334409242,1723051842377,-151.0,0.00017884,2]
[334409243,1723051842386,-151.0,0.00017884,2]
[334409244,1723051842396,-151.0,0.00017884,2]
[334409246,1723051842405,-174.068088,0.00018054,2]
[334409248,1723051842414,-1500.0,0.00018125,2]
[334409249,1723051842424,-150.112233,0.000187,2]
[334409250,1723051842433,-155.02827375,0.00018701,2]
[334409251,1723051842442,-414.04675619,0.00018701,2]
[334409252,1723051842453,-156.75205061,0.00018701,2]
[334409254,1723051842463,-155.68427905,0.00018701,2]
[334409255,1723051842472,-2139.82745581,0.00018701,2]
[334409257,1723051842481,-1991.22431521,0.00018773,2]
[334409259,1723051842490,-51318.3985106,0.0001891,2]
[334409260,1723051842499,-118352.58017063,0.0001892,2]
[334409261,1723051842508,-2005.0,0.0001984,10]
[334409262,1723051842518,-17106.1328369,0.0001999,2]
[334409263,1723051842527,-21059.30486563,0.0002,2]
[334409264,1723051842537,-270.38167672,0.0002,2]
[334409265,1723051842546,-156.37509576,0.0002,2]
[334409267,1723051842555,-53079.26250626,0.0002,2]
[334409269,1723051842566,-151.36378773,0.0002,2]
[334409270,1723051842576,-150.112233,0.000205,3]
[334409271,1723051842586,-2005.0,0.00020627,10]
[334409272,1723051842595,-2882.95841301,0.0002077,2]
[334409273,1723051842605,-513.68767147,0.00020888,2]
[334409275,1723051842615,-154.74080243,0.00021048,2]
[334409276,1723051842624,-150.01,0.00021197,2]
[334409278,1723051842634,-2005.0,0.00021531,10]
[334409279,1723051842646,-525.40068433,0.00021642,2]
[334409280,1723051842658,-532.00289109,0.00021805,2]
[334409281,1723051842668,-500.82339587,0.00021805,2]
[334409282,1723051842678,-309.31953483,0.00021805,2]
[334409283,1723051842687,-242.4722,0.00022299,2]
[334409285,1723051842696,-150.112233,0.000224,4]
[334409286,1723051842706,-215.7100545,0.00023206,2]
[334409287,1723051842715,-1897.29247092,0.00023545,2]
[334409288,1723051842725,-2882.95841301,0.00023756,2]
[334409290,1723051842735,-513.68767147,0.00024012,2]
[334409292,1723051842745,-150.112233,0.000243,4]
[334409294,1723051842755,-1523.32462062,0.00025,2]
[334409295,1723051842765,-10488.56500567,0.00025,2]
[334409296,1723051842775,-262.60133803,0.00025,2]
[334409297,1723051842785,-271.4386735,0.00025479,2]
[334409298,1723051842794,-271.4386735,0.00025479,2]
[334409300,1723051842803,-271.4386735,0.00025479,2]
[334409302,1723051842813,-601.0,0.00026,2]
[334409304,1723051842822,-150.112233,0.000262,9]
[334409305,1723051842832,-155.7412047,0.00026575,2]
[334409307,1723051842841,-415.992148,0.00026575,2]
[334409309,1723051842850,-151.0,0.00026633,3]
[334409311,1723051842860,-155.0,0.0002666,16]
[334409313,1723051842869,-2882.95841301,0.00026743,2]
[334409315,1723051842878,-17106.1328369,0.00027127,3]
[334409316,1723051842888,-513.68767147,0.00027137,2]
[334409317,1723051842900,-1411.0,0.00027187,2]
[334409318,1723051842911,-275.725,0.00027187,2]
[334409319,1723051842920,-151.0,0.00027692,4]
[334409320,1723051842930,-372.8379117,0.00027945,2]
[334409321,1723051842939,-150.337,0.00027953,2]
[334409322,1723051842948,-150.233,0.00027953,2]
[334409323,1723051842958,-179.981,0.00027953,2]
[334409324,1723051842968,-212.563,0.00027953,2]
[334409325,1723051842977,-150.112233,0.00028,9]
[334409326,1723051842986,-2005.0,0.00028486,10]
[334409327,1723051842996,-151.0,0.00028751,5]
[334409328,1723051843005,-1000.0,0.00029,29]
[334409329,1723051843015,-851.08717755,0.00029,2]
[334409331,1723051843024,-34212.2656738,0.0002969,3]
[334409332,1723051843034,-17106.1328369,0.00029719,3]
[334409334,1723051843044,-49676.13489499,0.00029729,120]
[334409336,1723051843053,-1160.44260964,0.00029729,2]
[334409338,1723051843063,-2882.95841301,0.00029729,2]
[334409340,1723051843073,-151.0,0.0002981,5]
[334409342,1723051843083,-68424.5313475,0.00029819,3]
[334409344,1723051843093,-436152.8078,0.00029829,30]
[334409345,1723051843102,-2005.0,0.00029899,10]
[334409347,1723051843112,-2005.0,0.00029899,10]
[334409349,1723051843121,-2005.0,0.00029899,10]
[334409351,1723051843130,-15472.2823452,0.000299,2]
[334409353,1723051843140,-27599.3775808,0.000299,2]
[334409354,1723051843397,-151.0,0.00017862,2]
[334409355,1723051843407,-151.0,0.00017863,2]
[334409356,1723051843419,-89.06741435,0.00017863,2]
[334409357,1723051843441,-61.93258565,0.00017863,2]
[334409358,1723051843450,-151.0,0.00017863,2]
[334409359,1723051843460,-120.54041435,0.00017863,2]
[334409360,1723051843480,-30.45958565,0.00017863,2]
[334409361,1723051843491,-151.0,0.00017863,2]
[334409362,1723051843501,-151.0,0.00017863,2]
[334409364,1723051843511,-274.82707,0.00017863,2]